bitfinex/quotes_BTCUSD_20250205
["timestamp","ask_amount","ask_price","bid_price","bid_amount"]
[1738776124413,0.0816564,97480.0,97449.0,0.41694449]
[1738776124618,0.0816564,97480.0,97449.0,0.43994449]
[1738776124813,0.0816564,97480.0,97449.0,0.47176126]
[1738776125240,0.0816564,97480.0,97449.0,0.43994449]
[1738776125442,0.0816564,97480.0,97449.0,0.56956079]
[1738776125614,0.0816564,97480.0,97449.0,0.61866079]
[1738776127103,0.0816564,97480.0,97449.0,0.60866079]
[1738776127303,0.0816564,97480.0,97449.0,0.61866079]
[1738776129059,0.0816564,97480.0,97449.0,0.60866079]
[1738776129811,0.0816564,97480.0,97449.0,0.59866079]
[1738776130012,0.0816564,97480.0,97449.0,0.60866079]
[1738776130361,0.0816564,97480.0,97449.0,0.61866079]
[1738776130581,5e-07,97450.0,97449.0,0.61866079]
[1738776131825,5e-07,97450.0,97449.0,0.47176079]
[1738776132025,5e-07,97450.0,97449.0,0.44876079]
[1738776132258,5e-07,97450.0,97449.0,0.29876079]
[1738776132428,5e-07,97450.0,97449.0,0.26694449]
[1738776132734,5e-07,97450.0,97449.0,0.153926]
[1738776133422,5e-07,97450.0,97430.0,0.21214022]
[1738776133633,0.0497,97449.0,97431.0,0.13439597]
[1738776133831,0.0497,97449.0,97420.0,0.21214022]
[1738776133832,0.0497,97449.0,97432.0,0.153953]
[1738776134034,0.153938,97442.0,97433.0,0.15395]
[1738776134230,0.01908058,97448.0,97420.0,0.21214022]
[1738776134439,0.01908058,97448.0,97421.0,0.10250365]
[1738776134657,0.01908058,97448.0,97432.0,0.153952]
[1738776134658,0.205239,97447.0,97432.0,0.153952]
[1738776134858,0.01908058,97448.0,97424.0,0.00102622]
[1738776135034,0.153935,97444.0,97435.0,0.153947]
[1738776135461,0.0497,97449.0,97435.0,0.153947]
[1738776135671,0.0497,97449.0,97425.0,0.10250365]
[1738776135879,0.153929,97447.0,97439.0,0.153941]
[1738776136087,0.0497,97449.0,97430.0,0.21214022]
[1738776136088,0.0497,97449.0,97433.0,0.205269]
[1738776136419,0.0497,97449.0,97432.0,1.02127312]
[1738776136420,0.0497,97449.0,97445.0,0.153932]
[1738776136698,0.203627,97449.0,97441.0,0.153938]
[1738776137076,0.153928,97448.0,97432.0,1.02127312]
[1738776137399,0.0497,97449.0,97433.0,0.00102618]
[1738776137700,0.0497,97449.0,97443.0,0.153935]
[1738776137914,0.0497,97449.0,97447.0,0.153928]
[1738776138046,0.0497,97449.0,97446.0,0.20524]
[1738776138266,0.0497,97449.0,97434.0,0.30776965]
[1738776138488,0.0497,97449.0,97435.0,0.205265]
[1738776138842,0.0497,97449.0,97420.0,1.23341334]
[1738776139143,0.0497,97449.0,97430.0,0.21214022]
[1738776139349,0.0497,97449.0,97440.0,0.205254]
[1738776139548,0.0497,97449.0,97431.0,0.10250365]
[1738776139794,0.0497,97449.0,97446.0,0.153931]
[1738776140150,0.0497,97449.0,97431.0,0.10250365]
[1738776140355,0.153943,97439.0,97430.0,1.02127312]
[1738776140554,0.0497,97449.0,97435.0,0.153948]
[1738776140755,0.0497,97449.0,97429.0,0.01015713]
[1738776140965,0.15394,97441.0,97434.0,0.153949]
[1738776141347,0.153941,97440.0,97434.0,0.153949]
[1738776141533,0.205239,97447.0,97435.0,0.153948]
[1738776141731,0.153939,97442.0,97435.0,0.153948]
[1738776141985,0.153939,97442.0,97420.0,1.23341334]
[1738776141986,0.205246,97444.0,97436.0,0.153946]
[1738776142139,0.153936,97444.0,97436.0,0.153946]
[1738776142333,0.153933,97445.0,97433.0,0.205267]
[1738776142671,0.153933,97445.0,97437.0,0.153944]
[1738776142876,0.153934,97444.0,97438.0,0.153943]
[1738776143280,0.0497,97449.0,97431.0,0.205273]
[1738776143494,0.0497,97449.0,97439.0,0.21214022]
[1738776143640,0.0497,97449.0,97426.0,0.01016872]
[1738776143841,0.0497,97449.0,97410.0,0.23514022]
[1738776143842,0.0497,97449.0,97417.0,0.10250365]
[1738776144126,0.0773,97427.0,97419.0,0.153972]
[1738776144299,0.153965,97425.0,97418.0,0.153975]
[1738776144495,0.0773,97427.0,97416.0,0.01022919]
[1738776144638,0.0773,97427.0,97421.0,0.153969]
[1738776145083,0.0773,97427.0,97419.0,0.205298]
[1738776145523,0.0773,97427.0,97416.0,0.0001069]
[1738776145697,0.153969,97422.0,97416.0,0.0001069]
[1738776146098,0.153967,97424.0,97416.0,0.1540849]
[1738776146302,0.153968,97423.0,97416.0,0.1540849]
[1738776146526,0.153964,97425.0,97418.0,0.153975]
[1738776147820,0.153965,97425.0,97416.0,0.0001069]
[1738776148203,0.153967,97424.0,97416.0,0.0001069]
[1738776148448,0.282583,97427.0,97418.0,0.153974]
[1738776148655,0.282583,97427.0,97416.0,0.0001069]
[1738776148656,0.231262,97427.0,97420.0,0.153972]
[1738776148813,0.0773,97427.0,97424.0,0.153966]
[1738776149013,0.0773,97427.0,97423.0,0.153967]
[1738776149235,0.0773,97427.0,97422.0,0.153969]
[1738776149453,0.0773,97427.0,97420.0,0.153972]
[1738776149454,0.231262,97427.0,97420.0,0.153972]
[1738776149808,0.231262,97427.0,97418.0,0.2053]
[1738776149809,0.0723,97427.0,97424.0,0.153964]
[1738776150016,0.0104627,97439.0,97427.0,0.153961]
[1738776150222,0.0816564,97459.0,97420.0,0.21214022]
[1738776150422,0.0816564,97459.0,97416.0,0.00113327]
[1738776150423,0.205223,97455.0,97436.0,0.205262]
[1738776150669,0.205223,97455.0,97430.0,0.21214022]
[1738776150670,0.205237,97448.0,97433.0,0.205269]
[1738776150864,0.205232,97451.0,97424.0,1.02127312]
[1738776151084,0.10250365,97448.0,97416.0,0.0001069]
[1738776151582,0.205241,97446.0,97421.0,0.00996]
[1738776151785,0.153962,97427.0,97421.0,0.00996]
[1738776152004,0.10250365,97445.0,97421.0,0.00996]
[1738776152299,0.153958,97429.0,97422.0,0.153969]
[1738776152556,0.205265,97435.0,97425.0,0.153963]
[1738776152761,0.01903547,97447.0,97423.0,0.00102638]
[1738776153043,0.01903547,97447.0,97421.0,0.00996]
[1738776153044,0.18550365,97446.0,97421.0,0.00996]
[1738776153494,0.205275,97430.0,97421.0,0.00996]
[1738776153697,0.153962,97427.0,97421.0,0.00996]
[1738776153861,0.083,97429.0,97421.0,0.00996]
[1738776154059,0.236958,97429.0,97422.0,0.153967]
[1738776154238,0.083,97429.0,97421.0,0.00996]
[1738776154438,0.153969,97422.0,97421.0,0.00996]
[1738776154641,0.046,97425.0,97421.0,0.00996]
[1738776154867,0.153969,97422.0,97421.0,0.00996]
[1738776155406,0.046,97425.0,97421.0,0.00996]
[1738776155961,0.199964,97425.0,97421.0,0.00996]
[1738776156509,0.046,97425.0,97421.0,0.00996]
[1738776156680,0.153966,97424.0,97421.0,0.00996]
[1738776156877,0.0779,97437.0,97421.0,0.0100669]
[1738776157056,0.153942,97440.0,97433.0,0.153951]
[1738776157255,0.153942,97440.0,97422.0,0.00102632]
[1738776157256,0.0779,97446.0,97440.0,0.15394]
[1738776157464,0.0453,97449.0,97433.0,0.205269]
[1738776157735,5e-07,97450.0,97445.0,0.153932]
[1738776157885,5e-07,97450.0,97442.0,0.205248]
[1738776158091,5e-07,97450.0,97448.0,0.153927]
[1738776158451,5e-07,97450.0,97448.0,0.15495304]
[1738776159269,5e-07,97450.0,97449.0,0.00102604]
[1738776159925,5e-07,97450.0,97449.0,0.10352969]
[1738776160541,5e-07,97450.0,97449.0,0.10250365]
[1738776160768,5e-07,97450.0,97448.0,0.153927]
[1738776161612,5e-07,97450.0,97449.0,0.10352969]
[1738776162005,5e-07,97450.0,97449.0,0.10250365]
[1738776162182,5e-07,97450.0,97448.0,0.153927]
[1738776163669,5e-07,97450.0,97443.0,1.02127312]
[1738776163877,5e-07,97450.0,97440.0,0.15394]
[1738776163878,0.1539255,97450.0,97440.0,0.15394]
[1738776164107,0.049,97449.0,97430.0,1.02127312]
[1738776164303,0.153944,97438.0,97430.0,1.02127312]
[1738776164547,0.049,97449.0,97427.0,0.205281]
[1738776164548,0.205255,97440.0,97427.0,0.205281]
[1738776164717,0.049,97449.0,97421.0,0.0100669]
[1738776164718,0.0827,97439.0,97421.0,0.0100669]
[1738776165380,0.153954,97432.0,97424.0,0.153965]
[1738776165582,0.20526,97437.0,97421.0,0.02013429]
[1738776165779,0.153949,97435.0,97421.0,0.0100669]
[1738776165983,0.0827,97439.0,97421.0,0.0100669]
[1738776166193,0.153953,97432.0,97423.0,0.153967]
[1738776166397,0.0827,97439.0,97421.0,0.0100669]
[1738776166398,0.205258,97438.0,97421.0,0.0100669]
[1738776166758,0.205258,97438.0,97424.0,0.205288]
[1738776166960,0.153949,97435.0,97425.0,0.153964]
[1738776167259,0.0827,97439.0,97425.0,0.0027672]
[1738776167426,0.153952,97433.0,97425.0,0.1567312]
[1738776167618,0.205266,97435.0,97425.0,0.0027672]
[1738776167818,0.153953,97433.0,97425.0,0.1567302]
[1738776168070,0.153954,97432.0,97425.0,0.1567302]
[1738776168240,0.205264,97436.0,97426.0,0.153961]
[1738776168454,0.205264,97436.0,97425.0,0.0027672]
[1738776168802,0.205266,97435.0,97425.0,0.0027672]
[1738776168955,0.153952,97433.0,97426.0,0.153961]
[1738776169453,0.153952,97433.0,97425.0,0.1567302]
[1738776169667,0.205244,97445.0,97434.0,0.153949]
[1738776169874,0.153936,97443.0,97436.0,0.153946]
[1738776170077,0.0772,97448.0,97426.0,0.153963]
[1738776170078,0.205241,97446.0,97426.0,0.153963]
[1738776170288,0.0772,97448.0,97427.0,0.00102624]
[1738776170484,0.153936,97443.0,97429.0,0.153958]
[1738776170689,0.153937,97443.0,97429.0,0.15498424]
[1738776171034,0.0772,97448.0,97429.0,0.10250365]
[1738776171314,0.00764772,97445.0,97439.0,0.153941]
[1738776171534,0.00764772,97445.0,97436.0,0.205261]
[1738776171811,0.00764772,97445.0,97429.0,0.0027672]
[1738776172172,0.153952,97433.0,97429.0,0.0027672]
[1738776172372,0.234756,97430.0,97429.0,0.0027672]
[1738776173821,0.24240372,97430.0,97429.0,0.0027672]
[1738776174858,0.08844772,97430.0,97429.0,0.0027672]
[1738776175137,0.00764772,97430.0,97429.0,0.1567252]
[1738776175384,0.00764772,97430.0,97429.0,0.0027672]
[1738776175860,0.153947,97436.0,97429.0,0.0027672]
[1738776176095,0.0801,97441.0,97429.0,0.0027672]
[1738776176331,0.153941,97440.0,97429.0,0.1567232]
[1738776176533,0.0801,97441.0,97435.0,0.153947]
[1738776176679,0.0801,97441.0,97433.0,0.205268]
[1738776176880,0.0801,97441.0,97434.0,0.15395]
[1738776178061,0.00764602,97448.0,97430.0,0.0027672]
[1738776178263,0.00764602,97448.0,97431.0,0.10352989]
[1738776178434,0.00764602,97448.0,97431.0,0.10250365]
[1738776178632,0.00764602,97443.0,97438.0,0.153943]
[1738776178829,0.00764602,97443.0,97439.0,0.205256]
[1738776179078,0.00764602,97443.0,97442.0,0.153937]
[1738776179406,0.00764602,97443.0,97442.0,1.27771377]
[1738776179947,5e-07,97450.0,97449.0,0.153926]
[1738776182607,5e-07,97450.0,97442.0,1.02127312]
[1738776182915,0.1539265,97450.0,97442.0,1.02127312]
[1738776183098,0.0002245,97443.0,97442.0,1.02127312]
[1738776183543,0.0002245,97443.0,97431.0,1.03137998]
[1738776183737,0.0002245,97443.0,97442.0,0.153937]
[1738776183938,0.0002245,97443.0,97439.0,0.15394]
[1738776184169,0.0002245,97443.0,97432.0,0.10250365]
[1738776184388,0.0002245,97443.0,97442.0,0.153937]
[1738776184913,0.0002245,97443.0,97442.0,1.27873991]
[1738776185172,0.0002245,97443.0,97442.0,1.27771377]
[1738776185394,5e-07,97450.0,97449.0,0.153926]
[1738776185601,5e-07,97450.0,97449.0,0.25745558]
[1738776185827,5e-07,97450.0,97449.0,0.28835836]
[1738776186061,5e-07,97450.0,97449.0,0.43835836]
[1738776186301,5e-07,97450.0,97449.0,0.42942965]
[1738776186538,0.00764602,97464.0,97463.0,0.153904]
[1738776186773,0.0816564,97488.0,97483.0,0.153872]
[1738776187004,0.0816564,97488.0,97483.0,1.27867446]
[1738776187267,0.09158826,97499.0,97483.0,1.27764877]
[1738776188608,0.09158826,97499.0,97483.0,1.42764877]
[1738776188914,0.09158826,97499.0,97483.0,1.43806094]
[1738776190380,0.09158826,97499.0,97483.0,1.28806094]
[1738776190855,0.0782,97494.0,97483.0,1.28806094]
[1738776191199,0.0816564,97498.0,97483.0,1.28806094]
[1738776191714,0.0782,97504.0,97483.0,1.43806094]
[1738776191858,0.0816564,97512.0,97483.0,1.43806094]
[1738776192042,0.153833,97509.0,97483.0,1.46106094]
[1738776192246,0.153834,97508.0,97483.0,1.46106094]
[1738776192453,0.0816564,97512.0,97483.0,1.46106094]
[1738776193223,0.0816564,97512.0,97483.0,1.43806094]
[1738776193645,1.5816564,97512.0,97483.0,1.43806094]
[1738776193853,0.153832,97509.0,97483.0,1.43806094]
[1738776194178,0.0826,97491.0,97483.0,1.28806094]
[1738776194649,0.0826,97491.0,97483.0,1.28418894]
[1738776195369,0.15387,97485.0,97477.0,0.153882]
[1738776195601,0.0826,97491.0,97472.0,0.15]
[1738776195828,0.0826,97491.0,97481.0,0.15]
[1738776196062,0.0826,97491.0,97483.0,0.15]
[1738776196305,0.048,97493.0,97483.0,0.25352938]
[1738776196552,0.0811,97500.0,97483.0,1.27377677]
[1738776196789,0.0483,97509.0,97483.0,1.29677677]
[1738776197007,0.153837,97506.0,97483.0,1.29677677]
[1738776197240,0.153839,97505.0,97483.0,1.29677677]
[1738776197461,0.15384,97504.0,97483.0,1.29677677]
[1738776197705,0.153838,97505.0,97483.0,1.29677677]
[1738776197937,0.205112,97508.0,97483.0,1.29677677]
[1738776198628,0.205122,97503.0,97483.0,1.49677677]
[1738776198888,0.205126,97501.0,97483.0,1.65064877]
[1738776199108,0.153844,97501.0,97483.0,1.65064877]
[1738776199342,0.20513,97499.0,97483.0,1.62764877]
[1738776199596,0.153858,97493.0,97483.0,1.62764877]
[1738776199790,0.205136,97496.0,97483.0,1.47764877]
[1738776199993,0.153854,97495.0,97483.0,1.47764877]
[1738776200220,0.20513,97499.0,97483.0,1.22127312]
[1738776200416,0.075,97485.0,97483.0,0.2]
[1738776200622,0.1540955,97484.0,97483.0,0.2]
[1738776200830,0.0461245,97484.0,97483.0,0.2]
[1738776201007,0.1999955,97484.0,97483.0,0.2]
[1738776204351,0.2104694,97484.0,97483.0,0.2]
[1738776206840,0.1999955,97484.0,97483.0,0.2]
[1738776207572,0.0002245,97484.0,97483.0,0.353872]
[1738776207793,0.0002245,97484.0,97483.0,0.45637565]
[1738776208733,0.0002245,97484.0,97483.0,0.4869494]
[1738776209863,0.2749955,97484.0,97483.0,0.23057375]
[1738776210267,0.1211245,97484.0,97483.0,0.23057375]
[1738776210435,0.2749955,97484.0,97483.0,0.23057375]
[1738776210635,0.2749955,97484.0,97483.0,0.2]
[1738776211033,0.1211245,97484.0,97483.0,0.2]
[1738776211238,0.0002245,97484.0,97483.0,0.45637565]
[1738776213625,0.0002245,97484.0,97483.0,0.497101]
[1738776214587,0.0002245,97484.0,97483.0,0.520101]
[1738776216369,0.0002245,97484.0,97483.0,0.600701]
[1738776217072,0.0002245,97484.0,97483.0,0.520101]
[1738776217229,0.0002245,97484.0,97483.0,0.48950463]
[1738776218651,0.0002245,97484.0,97483.0,0.63950463]
[1738776219056,0.0002245,97484.0,97483.0,0.67013661]
[1738776220612,0.0002245,97484.0,97483.0,0.48950463]
[1738776221588,0.0002245,97484.0,97483.0,0.46650463]
[1738776221927,0.0002245,97484.0,97483.0,0.45637565]
[1738776222679,0.0002245,97484.0,97483.0,0.48701507]
[1738776223096,0.0002245,97484.0,97483.0,0.51001507]
[1738776224730,0.0002245,97484.0,97483.0,0.69192596]
[1738776225499,0.0808,97513.0,97483.0,0.69192596]
[1738776225500,0.0808,97513.0,97484.0,0.023]
[1738776225702,0.0808,97513.0,97489.0,0.023]
[1738776225961,0.0808,97513.0,97507.0,0.153834]
[1738776226160,0.0808,97513.0,97504.0,0.205119]
[1738776226358,0.0808,97513.0,97505.0,0.25633965]
[1738776226511,0.0808,97513.0,97505.0,0.10250365]
[1738776226865,0.0808,97513.0,97511.0,0.153828]
[1738776227525,0.0808,97513.0,97506.0,0.27404955]
[1738776227526,0.0808,97513.0,97507.0,0.153835]
[1738776227746,0.0808,97513.0,97508.0,0.10250365]
[1738776227953,0.0808,97513.0,97506.0,0.06893455]
[1738776228161,0.0808,97513.0,97506.0,0.1714382]
[1738776228470,0.00022471,97524.0,97513.0,0.153825]
[1738776228778,0.00022471,97524.0,97513.0,0.257354]
[1738776228976,0.00022471,97524.0,97513.0,0.25632865]
[1738776230016,0.00022471,97524.0,97513.0,0.30996807]
[1738776230627,0.00022471,97524.0,97513.0,0.28696807]
[1738776234008,0.00022471,97524.0,97513.0,0.03063942]
[1738776234170,0.153821,97516.0,97513.0,0.03063942]
[1738776234382,0.15382,97517.0,97513.0,0.03063942]
[1738776234639,0.205089,97519.0,97513.0,0.03063942]
[1738776234842,0.153818,97518.0,97513.0,0.03063942]
[1738776235192,0.205084,97521.0,97513.0,0.03063942]
[1738776235392,0.153815,97520.0,97513.0,0.03063942]
[1738776236021,0.23514871,97514.0,97513.0,0.03063942]
[1738776236812,0.08132471,97514.0,97503.0,0.03063942]
[1738776237014,0.00022471,97514.0,97513.0,0.27932865]
[1738776237178,0.00022471,97514.0,97513.0,1.30060177]
[1738776237723,0.00022471,97514.0,97513.0,1.33124119]
[1738776238690,0.00022471,97514.0,97513.0,1.35781155]
[1738776239630,0.00022471,97514.0,97513.0,1.34146342]
[1738776240172,0.00022471,97514.0,97513.0,1.36803378]
[1738776240382,0.00022471,97514.0,97513.0,1.51803378]
[1738776240747,0.00022471,97514.0,97513.0,1.59953378]
[1738776241075,7.1e-07,97514.0,97513.0,1.59953378]
[1738776241256,7.1e-07,97514.0,97513.0,1.65623736]
[1738776241466,0.00022471,97524.0,97523.0,0.441909]
[1738776241692,0.0002245,97537.0,97536.0,0.326789]
[1738776241886,0.0002245,97537.0,97536.0,1.45056577]
[1738776242084,0.0002245,97537.0,97536.0,1.48241635]
[1738776242307,0.0002245,97537.0,97536.0,1.51949598]
[1738776242438,0.0002245,97537.0,97536.0,1.59839598]
[1738776242827,0.0002245,97537.0,97536.0,1.60195577]
[1738776243226,0.0002245,97537.0,97536.0,1.61233154]
[1738776244251,5e-07,97537.0,97536.0,1.58048096]
[1738776244462,5e-07,97537.0,97536.0,1.65856431]
[1738776245005,0.00022471,97539.0,97538.0,0.336786]
[1738776245217,0.00022471,97539.0,97538.0,0.471073]
[1738776245598,0.00022471,97557.0,97547.0,0.313772]
[1738776245819,0.00022471,97557.0,97547.0,1.46054877]
[1738776246442,0.00022471,97557.0,97547.0,1.49118819]
[1738776246780,0.00022471,97557.0,97547.0,2.03308819]
[1738776249127,0.0002245,97548.0,97547.0,2.11950875]
[1738776250250,0.0002245,97548.0,97547.0,2.13970921]
[1738776251466,5e-07,97548.0,97547.0,2.13970921]
[1738776251676,2.1e-07,97549.0,97548.0,0.33677]
[1738776251930,7.1e-07,97562.0,97561.0,0.336749]
[1738776252140,7.1e-07,97562.0,97561.0,2.5221882]
[1738776252295,7.1e-07,97562.0,97561.0,3.0640882]
[1738776252695,4.2e-07,97566.0,97565.0,0.313743]
[1738776252959,4.2e-07,97566.0,97565.0,0.51604665]
[1738776253861,4.2e-07,97566.0,97565.0,0.58463115]
[1738776254667,4.2e-07,97566.0,97565.0,0.50783115]
[1738776254802,4.2e-07,97566.0,97565.0,0.50818869]
[1738776256772,4.2e-07,97566.0,97565.0,0.47024361]
[1738776259173,4.2e-07,97566.0,97565.0,0.49039067]
[1738776261989,4.2e-07,97566.0,97565.0,0.50039067]
[1738776263319,4.2e-07,97566.0,97565.0,0.57629067]
[1738776263528,4.2e-07,97566.0,97565.0,0.50039067]
[1738776264271,4.2e-07,97566.0,97565.0,1.00929067]
[1738776265445,4.2e-07,97566.0,97565.0,1.03229067]
[1738776266670,4.2e-07,97566.0,97565.0,1.00165125]
[1738776267313,4.2e-07,97566.0,97565.0,1.03333874]
[1738776268907,4.2e-07,97566.0,97565.0,1.04333874]
[1738776269519,0.00022471,97583.0,97581.0,0.303718]
[1738776269719,0.00022471,97583.0,97581.0,1.45049477]
[1738776271703,0.0754883,97582.0,97581.0,1.46075018]
[1738776271906,0.0754883,97582.0,97581.0,1.45049477]
[1738776273458,0.1219883,97582.0,97581.0,1.29677677]
[1738776273757,0.1219883,97582.0,97581.0,1.30049477]
[1738776274131,0.0719883,97582.0,97581.0,1.30049477]
[1738776275059,0.0719883,97582.0,97581.0,1.02127312]
[1738776275277,0.0719883,97582.0,97581.0,1.17499112]
[1738776275418,0.0719883,97582.0,97581.0,1.02127312]
[1738776275625,0.0719883,97582.0,97581.0,1.17499112]
[1738776276243,0.0719883,97582.0,97581.0,1.02127312]
[1738776277357,0.0719883,97582.0,97571.0,0.023]
[1738776277509,0.0719883,97582.0,97565.0,1.02127312]
[1738776277510,0.0808,97578.0,97572.0,0.03189569]
[1738776277712,0.0465,97579.0,97562.0,0.10261045]
[1738776277713,0.0808,97563.0,97562.0,0.10261045]
[1738776278463,0.0808,97563.0,97562.0,0.12561045]
[1738776278668,0.0808,97563.0,97562.0,0.27935845]
[1738776278845,0.0808,97563.0,97562.0,0.12561045]
[1738776279044,0.1293,97563.0,97562.0,0.0001068]
[1738776280229,0.283046,97563.0,97562.0,0.0001068]
[1738776280641,0.1223,97562.0,97561.0,0.1501068]
[1738776281081,0.1223,97562.0,97561.0,0.1001068]
[1738776281082,0.2723,97562.0,97561.0,0.1001068]
[1738776281282,0.37480365,97562.0,97561.0,0.0220068]
[1738776281810,0.01,97559.0,97527.0,0.00102512]
[1738776282070,0.153819,97517.0,97514.0,0.00102533]
[1738776282244,0.0768,97532.0,97515.0,0.10250365]
[1738776282448,0.15382,97516.0,97514.0,0.00102533]
[1738776282683,0.15382,97516.0,97500.0,2.02127312]
[1738776282684,0.153824,97514.0,97500.0,1.153845]
[1738776282884,0.153824,97514.0,97500.0,1.023]
[1738776283091,0.153824,97514.0,97500.0,1.0]
[1738776283092,0.236724,97514.0,97500.0,1.0]
[1738776283897,0.236724,97514.0,97513.0,0.0001068]
[1738776285555,0.433424,97514.0,97513.0,0.0001068]
[1738776286822,0.5562243,97514.0,97513.0,0.0001068]
[1738776287001,0.5562243,97514.0,97500.0,1.0]
[1738776287002,0.235444,97501.0,97500.0,1.0]
[1738776287221,0.385444,97501.0,97500.0,1.0]
[1738776287762,0.235444,97501.0,97500.0,1.0]
[1738776287963,0.0766,97511.0,97500.0,1.0]
[1738776288539,0.15383,97510.0,97500.0,1.0]
[1738776288823,0.153844,97501.0,97500.0,1.0]
[1738776291477,0.205107,97510.0,97500.0,1.0]
[1738776291689,0.153844,97501.0,97500.0,1.0]
[1738776292266,0.48294765,97501.0,97500.0,1.0]
[1738776292497,0.49294765,97501.0,97500.0,1.0]
[1738776293200,0.56723765,97501.0,97500.0,0.682261]
[1738776293609,0.01,97484.0,97483.0,0.2001069]
[1738776293871,0.32796465,97484.0,97483.0,0.2001069]
[1738776294303,0.303898,97467.0,97466.0,7.195e-05]
[1738776294426,0.313898,97467.0,97466.0,7.195e-05]
[1738776294627,0.303898,97467.0,97466.0,7.195e-05]
[1738776294818,0.313898,97467.0,97466.0,7.195e-05]
[1738776295222,0.41640165,97467.0,97466.0,7.195e-05]
[1738776295425,0.4266534,97467.0,97466.0,0.00257665]
[1738776296990,0.4166534,97467.0,97466.0,0.00257665]
[1738776297238,0.51915705,97467.0,97466.0,0.00257665]
[1738776297395,0.31414975,97467.0,97466.0,0.00257665]
[1738776297811,0.153898,97467.0,97466.0,0.00257665]
[1738776299406,0.153898,97467.0,97466.0,0.00268345]
[1738776299878,0.01026322,97472.0,97466.0,0.00268345]
[1738776299879,0.205188,97472.0,97466.0,0.00268345]
[1738776300089,0.29358904,97490.0,97466.0,0.00268345]
[1738776300259,0.205153,97488.0,97466.0,0.00268345]
[1738776300440,0.153898,97467.0,97466.0,0.00268345]
[1738776302356,0.25640165,97467.0,97466.0,0.00268345]
[1738776302948,0.23772591,97467.0,97466.0,0.00268345]
[1738776303125,0.29931591,97467.0,97466.0,0.00268345]
[1738776303337,0.39184937,97467.0,97466.0,0.00268345]
[1738776303535,0.39595337,97467.0,97466.0,0.00268345]
[1738776305138,0.40595337,97467.0,97466.0,0.00268345]
[1738776305330,0.40595337,97467.0,97464.0,0.0001068]
[1738776305331,0.08159,97465.0,97464.0,2.5e-07]
[1738776305525,0.57315133,97465.0,97464.0,2.5e-07]
[1738776309447,0.48691465,97465.0,97464.0,2.5e-07]
[1738776310172,0.47799465,97465.0,97464.0,2.5e-07]
[1738776310353,0.48691465,97465.0,97464.0,2.5e-07]
[1738776312055,0.47799465,97465.0,97464.0,2.5e-07]
[1738776312512,0.41640465,97465.0,97464.0,2.5e-07]
[1738776312868,0.5089083,97465.0,97464.0,2.5e-07]
[1738776313356,0.5189083,97465.0,97464.0,2.5e-07]
[1738776314915,0.5904983,97465.0,97464.0,2.5e-07]
[1738776316520,2.0904983,97465.0,97464.0,2.5e-07]
[1738776318382,2.0804983,97465.0,97464.0,2.5e-07]
[1738776318908,2.0704983,97465.0,97464.0,2.5e-07]
[1738776319047,2.0804983,97465.0,97464.0,2.5e-07]
[1738776319449,0.5804983,97465.0,97464.0,2.5e-07]
[1738776319854,2.0804983,97465.0,97464.0,2.5e-07]
[1738776321796,2.0894183,97465.0,97464.0,2.5e-07]
[1738776322331,0.46799465,97465.0,97464.0,2.5e-07]
[1738776322534,0.47799465,97465.0,97464.0,2.5e-07]
[1738776322737,0.46799465,97465.0,97464.0,2.5e-07]
[1738776323118,0.25640465,97465.0,97464.0,2.5e-07]
[1738776323501,0.48799465,97465.0,97464.0,2.5e-07]
[1738776323676,0.48799465,97465.0,97450.0,0.0001069]
[1738776323677,0.365513,97451.0,97450.0,0.0001069]
[1738776323908,0.46801665,97451.0,97450.0,0.0001069]
[1738776324115,1.96801665,97451.0,97450.0,0.0001069]
[1738776324710,0.46801665,97451.0,97450.0,0.0001069]
[1738776326992,0.47818965,97451.0,97450.0,0.0001069]
[1738776327205,0.5806933,97451.0,97450.0,0.0001069]
[1738776327691,0.41659965,97451.0,97450.0,0.0001069]
[1738776328340,0.42659965,97451.0,97450.0,0.0001069]
[1738776330465,0.49818965,97451.0,97450.0,0.0001069]
[1738776331081,1.99818965,97451.0,97450.0,0.0001069]
[1738776331469,0.313942,97439.0,97416.0,0.0771069]
[1738776331646,0.48803565,97439.0,97416.0,0.0771069]
[1738776332524,0.48803565,97439.0,97416.0,0.0001069]
[1738776332765,0.303977,97417.0,97416.0,0.0001069]
[1738776332954,0.41540065,97417.0,97416.0,0.0001069]
[1738776333185,0.48601558,97417.0,97416.0,0.0001069]
[1738776333384,0.47709558,97417.0,97416.0,0.0001069]
[1738776333697,0.48601558,97417.0,97416.0,0.0001069]
[1738776333904,0.42572606,97417.0,97416.0,0.0001069]
[1738776334288,0.16430241,97417.0,97416.0,0.0001069]
[1738776334497,0.14153195,97426.0,97416.0,0.0001069]
[1738776334706,0.14153195,97426.0,97417.0,0.0784]
[1738776334941,0.14153195,97426.0,97421.0,0.023]
[1738776335143,0.14153195,97426.0,97422.0,0.0784]
[1738776335324,0.14153195,97432.0,97422.0,0.0784]
[1738776335526,0.29548595,97432.0,97422.0,0.0784]
[1738776335808,0.14153195,97432.0,97422.0,0.0784]
[1738776336413,0.14153195,97432.0,97424.0,0.081]
[1738776336625,0.153955,97431.0,97424.0,0.081]
[1738776336827,0.14153195,97432.0,97424.0,0.081]
[1738776336961,0.14153195,97432.0,97421.0,0.15397]
[1738776336962,0.14153195,97432.0,97423.0,0.023]
[1738776337305,0.14153195,97432.0,97426.0,0.0811]
[1738776337528,0.15396,97428.0,97426.0,0.0811]
[1738776338339,0.153944,97438.0,97426.0,0.0811]
[1738776338491,0.153957,97430.0,97426.0,0.0811]
[1738776338681,0.0816564,97439.0,97426.0,0.0811]
[1738776338889,0.153959,97429.0,97426.0,0.0811]
[1738776339087,0.153961,97428.0,97426.0,0.0811]
[1738776339479,0.153961,97427.0,97426.0,0.0811]
[1738776339673,0.205265,97435.0,97426.0,0.0811]
[1738776339914,0.410516,97438.0,97426.0,0.0811]
[1738776340131,0.08080425,97439.0,97426.0,0.0811]
[1738776340604,0.153945,97438.0,97427.0,0.023]
[1738776340839,0.153955,97431.0,97427.0,0.023]
[1738776341545,0.153951,97434.0,97427.0,0.023]
[1738776341769,0.153946,97437.0,97427.0,0.023]
[1738776342036,0.14153195,97440.0,97428.0,0.023]
[1738776342319,0.205229,97453.0,97434.0,0.205265]
[1738776342320,0.14153195,97450.0,97434.0,0.205265]
[1738776342675,0.14153195,97450.0,97438.0,0.023]
[1738776342849,0.14153195,97450.0,97440.0,0.023]